fUSD/lending_fUSD_20251223
["ID","MTS","AMOUNT","RATE_DAILY","PERIOD"]
[399578889,1766519440156,-3012.0,0.00016054,2]
[399578890,1766519440169,-500.0,0.00016054,2]
[399578891,1766519440179,-150.0,0.00016054,2]
[399578892,1766519440189,-200.0,0.00016054,2]
[399578893,1766519440201,-150.0,0.00016054,2]
[399578894,1766519440211,-150.0,0.00016054,2]
[399578895,1766519440222,-150.0,0.00016054,2]
[399578896,1766519440232,-150.0,0.00016054,2]
[399578897,1766519440241,-206.73241597,0.00016054,2]
[399578898,1766519440251,-150.0,0.00016054,2]
[399578899,1766519440261,-150.0,0.00016054,2]
[399578900,1766519440271,-150.0,0.00016054,2]
[399578901,1766519440281,-151.45388092,0.00016054,2]
[399578902,1766519440291,-157.32824713,0.00016054,2]
[399578903,1766519440301,-607.3149885,0.00016054,2]
[399578904,1766519440311,-150.0,0.00016054,2]
[399578905,1766519440321,-150.0,0.00016054,2]
[399578906,1766519440331,-181.16189446,0.00016054,2]
[399578907,1766519440341,-150.0,0.00016054,2]
[399578908,1766519440351,-150.0,0.00016054,2]
[399578909,1766519440360,-150.0,0.00016054,2]
[399578910,1766519440370,-150.0,0.00016082,2]
[399578911,1766519440380,-150.0,0.00016082,2]
[399578912,1766519440389,-223.15728325,0.00016082,2]
[399578913,1766519440399,-232.01120025,0.00016082,2]
[399578914,1766519440409,-3012.0,0.00016082,2]
[399578915,1766519440418,-500.0,0.00016082,2]
[399578916,1766519440429,-200.0,0.00016082,2]
[399578917,1766519440439,-176.0,0.00016082,2]
[399578918,1766519440449,-164.05699639,0.00016082,2]
[399578919,1766519440459,-157.18625101,0.00016082,2]
[399578920,1766519440468,-150.0,0.00016082,2]
[399578921,1766519440478,-150.0,0.00016082,2]
[399578922,1766519440488,-234.58561576,0.00016082,2]
[399578923,1766519440498,-205.7805094,0.00016082,2]
[399578924,1766519440509,-150.0,0.00016082,2]
[399578925,1766519440518,-200.0,0.00016082,2]
[399578926,1766519440528,-6026.41030858,0.00016109,2]
[399578927,1766519440538,-150.0,0.00016109,2]
[399578928,1766519440549,-160.24705155,0.00016109,2]
[399578929,1766519440559,-3012.0,0.00016109,2]
[399578930,1766519440570,-500.0,0.00016109,2]
[399578931,1766519440581,-150.0,0.00016109,2]
[399578932,1766519440591,-150.0,0.00016109,2]
[399578933,1766519440601,-150.0,0.00016109,2]
[399578934,1766519440610,-223.17955131,0.00016137,2]
[399578935,1766519440620,-3012.0,0.00016137,2]
[399578936,1766519440630,-500.0,0.00016137,2]
[399578937,1766519440640,-237.96567744,0.00016137,2]
[399578938,1766519440650,-150.82734528,0.00016137,2]
[399578939,1766519440659,-150.0,0.00016137,2]
[399578940,1766519440669,-3012.0,0.00016164,2]
[399578941,1766519440679,-516.0,0.00016164,2]
[399578942,1766519440688,-250.0,0.00016164,2]
[399578943,1766519440698,-159.51,0.00016166,2]
[399578944,1766519440709,-500.0,0.00016176,2]
[399578945,1766519440718,-166.66,0.00016182,2]
[399578946,1766519440728,-3012.0,0.00016191,2]
[399578947,1766519440738,-3012.0,0.00016219,2]
[399578948,1766519440749,-334.52490772,0.00016219,2]
[399578949,1766519440760,-3451.84,0.00016231,2]
[399578950,1766519440770,-3012.0,0.00016246,2]
[399578951,1766519440780,-3012.0,0.00016274,2]
[399578952,1766519440791,-2500.0,0.00016277,2]
[399578953,1766519440801,-3012.0,0.00016301,2]
[399578954,1766519440812,-595.37131296,0.00016303,2]
[399578955,1766519440822,-151.0,0.00016303,2]
[399578956,1766519440831,-322.6107,0.00016303,2]
[399578957,1766519440842,-151.0,0.00016303,2]
[399578958,1766519440851,-7312.73610627,0.00016304,2]
[399578959,1766519440861,-3012.0,0.00016328,2]
[399578960,1766519440871,-233.50446408,0.00016338,2]
[399578961,1766519440881,-3012.0,0.00016356,2]
[399578962,1766519440891,-500.0,0.00016373,2]
[399578963,1766519440901,-500.0,0.00016373,2]
[399578964,1766519440911,-151.0,0.00016374,2]
[399578965,1766519440921,-1036.83747208,0.00016377,5]
[399578966,1766519440932,-150.0,0.00016378,2]
[399578967,1766519440942,-3809.0,0.00016378,2]
[399578968,1766519440952,-3012.0,0.00016383,2]
[399578969,1766519440961,-3012.0,0.00016411,2]
[399578970,1766519440971,-3012.0,0.00016438,2]
[399578971,1766519440981,-173.03903704,0.00016438,2]
[399578972,1766519440991,-1000.0,0.00016438,2]
[399578973,1766519441002,-1000.0,0.00016438,2]
[399578974,1766519441012,-1000.0,0.00016438,2]
[399578975,1766519441022,-1000.0,0.00016438,2]
[399578976,1766519441031,-1000.0,0.00016438,2]
[399578977,1766519441042,-1000.0,0.00016438,2]
[399578978,1766519441051,-1000.0,0.00016438,2]
[399578979,1766519441061,-1000.0,0.00016438,2]
[399578980,1766519441071,-1000.0,0.00016438,2]
[399578981,1766519441080,-1000.0,0.00016438,2]
[399578982,1766519441089,-1000.0,0.00016438,2]
[399578983,1766519441099,-1000.0,0.00016438,2]
[399578984,1766519441108,-1000.0,0.00016438,2]
[399578985,1766519441118,-1000.0,0.00016438,2]
[399578986,1766519441132,-1000.0,0.00016438,2]
[399578987,1766519441142,-1000.0,0.00016438,2]
[399578988,1766519441151,-1000.0,0.00016438,2]
[399578989,1766519441163,-1000.0,0.00016438,2]
[399578990,1766519441173,-1000.0,0.00016438,2]
[399578991,1766519441183,-1000.0,0.00016438,2]
[399578992,1766519441193,-1000.0,0.00016438,2]
[399578993,1766519441202,-1000.0,0.00016438,2]
[399578994,1766519441212,-1000.0,0.00016438,2]
[399578995,1766519441221,-1000.0,0.00016438,2]
[399578996,1766519441230,-1000.0,0.00016438,2]
[399578997,1766519441240,-1000.0,0.00016438,2]
[399578998,1766519441250,-1074.23710306,0.00016438,2]
[399578999,1766519441259,-150.0,0.00016438,2]
[399579000,1766519441269,-631.85,0.00016438,2]
[399579001,1766519441279,-631.85,0.00016438,2]
[399579002,1766519441289,-631.85,0.00016438,2]
[399579003,1766519441298,-631.85,0.00016438,2]
[399579004,1766519441308,-631.85,0.00016438,2]
[399579005,1766519441317,-150.0,0.00016438,2]
[399579006,1766519441327,-500.0,0.00016438,2]
[399579007,1766519441337,-500.0,0.00016438,2]
[399579008,1766519441346,-500.0,0.00016438,2]
[399579009,1766519441356,-500.0,0.00016438,2]
[399579010,1766519441365,-500.0,0.00016438,2]
[399579011,1766519441375,-500.0,0.00016438,2]
[399579012,1766519441386,-500.0,0.00016438,2]
[399579013,1766519441396,-500.0,0.00016438,2]
[399579014,1766519441407,-500.0,0.00016438,2]
[399579015,1766519441417,-615.33941075,0.00016438,2]
[399579016,1766519441427,-500.0,0.00016438,2]
[399579017,1766519441437,-500.0,0.00016438,2]
[399579018,1766519441447,-500.0,0.00016438,2]
[399579019,1766519441457,-3607.23,0.00016438,2]
[399579020,1766519441468,-193.265202,0.00016438,2]
[399579021,1766519441477,-193.265202,0.00016438,2]
[399579022,1766519441487,-193.265202,0.00016438,2]
[399579023,1766519441497,-3012.0,0.00016465,2]
[399579024,1766519441507,-150.0,0.00016465,2]
[399579025,1766519441516,-500.0,0.00016466,2]
[399579026,1766519441526,-335.81736595,0.00016481,2]
[399579027,1766519441536,-3012.0,0.00016493,2]
[399579028,1766519441547,-166.66,0.00016502,2]
[399579029,1766519441556,-3012.0,0.0001652,2]
[399579030,1766519441567,-3012.0,0.00016548,2]
[399579031,1766519441577,-3012.0,0.00016575,2]
[399579032,1766519441586,-3012.0,0.00016602,2]
[399579033,1766519441597,-3012.0,0.0001663,2]
[399579034,1766519441607,-250.0,0.00016632,2]
[399579035,1766519441618,-195.0,0.00016632,2]
[399579036,1766519441628,-4184.0611869,0.0001664,2]
[399579037,1766519441638,-1000.0,0.00016656,2]
[399579038,1766519441648,-3031.28741109,0.00016657,2]
[399579039,1766519441657,-4436.225466,0.00016667,2]
[399579040,1766519441666,-3568.03240951,0.00016712,2]
[399579041,1766519441675,-420.0,0.00016812,2]
[399579042,1766519441686,-420.0,0.00016812,2]
[399579043,1766519441697,-166.66,0.00016822,2]
[399579044,1766519441707,-617.40005154,0.00016851,2]
[399579045,1766519441717,-151.0,0.00016851,2]
[399579046,1766519441726,-307.07693615,0.00016851,2]
[399579047,1766519441735,-151.0,0.00016851,2]
[399579048,1766519441745,-200.0,0.00016863,2]
[399579049,1766519441755,-200.0,0.00016864,2]
[399579050,1766519441764,-200.0,0.00016864,2]
[399579051,1766519441774,-200.0,0.00016864,2]
[399579052,1766519441783,-510.0,0.00016872,2]
[399579053,1766519441793,-151.0,0.00016897,2]
[399579054,1766519441803,-1680.0,0.00016897,2]
[399579055,1766519441812,-23007.6778,0.000169,2]
[399579056,1766519441822,-1000.0,0.000169,2]
[399579057,1766519441832,-407.33660928,0.000169,2]
[399579058,1766519441842,-166.75347236,0.000169,2]
[399579059,1766519441852,-1000.0,0.00016921,2]
[399579060,1766519441862,-1000.0,0.00016921,2]
[399579061,1766519441872,-590.45626287,0.00016973,2]
[399579062,1766519441882,-500.0,0.00016973,2]
[399579063,1766519441892,-500.0,0.00016973,2]
[399579064,1766519441902,-500.0,0.00016973,2]
[399579065,1766519441912,-500.56420784,0.00016973,2]
[399579066,1766519441922,-230.84233683,0.00016973,2]
[399579067,1766519441932,-500.39875866,0.00016973,2]
[399579068,1766519441942,-500.0,0.00016973,2]
[399579069,1766519441953,-500.19210667,0.00016973,2]
[399579070,1766519441967,-500.0,0.00016973,2]
[399579071,1766519441978,-500.0,0.00016973,2]
[399579072,1766519441988,-500.0,0.00016973,2]
[399579073,1766519441998,-160.24260884,0.00016973,2]
[399579074,1766519442008,-160.23821481,0.00016973,2]
[399579075,1766519442017,-500.0,0.00016973,2]
[399579076,1766519442027,-160.24250558,0.00016973,2]
[399579077,1766519442037,-160.24174776,0.00016973,2]
[399579078,1766519442049,-160.2327048,0.00016973,2]
[399579079,1766519442059,-500.0,0.00016973,2]
[399579080,1766519442068,-500.0,0.00016973,2]
[399579081,1766519442078,-500.0,0.00016973,2]
[399579082,1766519442087,-500.0,0.00016973,2]
[399579083,1766519442097,-500.0,0.00016973,2]
[399579084,1766519442107,-374.52078265,0.00016973,2]
[399579085,1766519442118,-500.67181276,0.00016973,2]
[399579086,1766519442134,-378.15038662,0.00016973,2]
[399579087,1766519442144,-160.29255705,0.00016973,2]
[399579088,1766519442154,-500.0,0.00016973,2]
[399579089,1766519442165,-500.0,0.00016973,2]
[399579090,1766519442175,-500.0,0.00016973,2]
[399579091,1766519442185,-500.0,0.00016973,2]
[399579092,1766519442195,-160.62679815,0.00016973,2]
[399579093,1766519442206,-500.0,0.00016973,2]
[399579094,1766519442226,-500.0,0.00016973,2]
[399579095,1766519442241,-330.86005665,0.00016973,2]
[399579096,1766519442252,-500.0,0.00016973,2]
[399579097,1766519442263,-333.60777271,0.00016973,2]
[399579098,1766519442273,-168.29544961,0.00016973,2]
[399579099,1766519442285,-500.0,0.00016973,2]
[399579100,1766519442298,-500.0,0.00016973,2]
[399579101,1766519442310,-500.0,0.00016973,2]
[399579102,1766519442321,-500.0,0.00016973,2]
[399579103,1766519442332,-500.0,0.00016973,2]
[399579104,1766519442343,-500.0,0.00016973,2]
[399579105,1766519442355,-500.47443561,0.00016973,2]
[399579106,1766519442365,-500.88574741,0.00016973,2]
[399579107,1766519442376,-500.0,0.00016973,2]
[399579108,1766519442387,-206.68057724,0.00016973,2]
[399579109,1766519442399,-307.37565006,0.00016973,2]
[399579110,1766519442694,-500.0,0.00016973,2]
[399579111,1766519442706,-500.0,0.00016973,2]
[399579112,1766519442716,-500.0,0.00016973,2]
[399579113,1766519442727,-160.23345008,0.00016973,2]
[399579114,1766519442746,-509.64505039,0.00016973,2]
[399579115,1766519442763,-160.23361018,0.00016973,2]
[399579116,1766519442774,-500.0,0.00016973,2]
[399579117,1766519442785,-160.24093346,0.00016973,2]
[399579118,1766519442795,-160.23839758,0.00016973,2]
[399579119,1766519442805,-500.0,0.00016973,2]
[399579120,1766519442815,-483.17674819,0.00016973,2]
[399579121,1766519442826,-168.65623876,0.00016973,2]
[399579122,1766519442844,-282.67201079,0.00016973,2]
[399579123,1766519442865,-506.42109494,0.00016973,2]
[399579124,1766519442879,-500.0,0.00016973,2]
[399579125,1766519442891,-500.0,0.00016973,2]
[399579126,1766519442903,-163.75514671,0.00016973,2]
[399579127,1766519442914,-500.0,0.00016973,2]
[399579128,1766519442926,-329.27825584,0.00016973,2]
[399579129,1766519442936,-551.71631931,0.00016973,2]
[399579130,1766519442947,-500.0,0.00016973,2]
[399579131,1766519442957,-165.61363153,0.00016973,2]
[399579132,1766519442967,-500.0,0.00016973,2]
[399579133,1766519442977,-500.0,0.00016973,2]
[399579134,1766519442989,-500.18172396,0.00016973,2]
[399579135,1766519443001,-150.40009762,0.00016973,2]
[399579136,1766519443012,-500.0,0.00016973,2]
[399579137,1766519443022,-161.66866565,0.00016973,2]
[399579138,1766519443032,-285.14104371,0.00016973,2]
[399579139,1766519443045,-151.0,0.00016973,2]
[399579140,1766519443056,-151.0,0.00016973,2]
[399579142,1766519443066,-293.0,0.00016975,2]
[399579144,1766519443076,-151.0,0.00016986,2]
[399579145,1766519443087,-151.0,0.00016986,2]
[399579146,1766519443096,-151.0,0.00016986,2]
[399579147,1766519443107,-151.0,0.00016986,2]
[399579149,1766519443118,-151.0,0.00016986,2]
[399579150,1766519443133,-151.0,0.00016986,2]
[399579151,1766519443142,-151.0,0.00016986,2]
[399579152,1766519443152,-151.0,0.00016986,2]
[399579153,1766519443163,-151.0,0.00016986,2]
[399579154,1766519443173,-151.0,0.00016986,2]
[399579155,1766519443183,-151.0,0.00016986,2]
[399579156,1766519443193,-151.0,0.00016986,2]
[399579157,1766519443203,-151.0,0.00016986,2]
[399579158,1766519443213,-201.041019,0.00016986,2]
[399579159,1766519443223,-201.041019,0.00016986,2]
[399579161,1766519443233,-201.041019,0.00016986,2]
[399579162,1766519443243,-201.041019,0.00016986,2]
[399579163,1766519443252,-151.0,0.00016986,2]
[399579164,1766519443262,-151.0,0.00016986,2]
[399579165,1766519443272,-180.293613,0.00016986,2]
[399579167,1766519443282,-180.293613,0.00016986,2]
[399579168,1766519443292,-180.293613,0.00016986,2]
[399579169,1766519443302,-180.293613,0.00016986,2]
[399579170,1766519443312,-280.88149,0.00016986,2]
[399579171,1766519443322,-280.88149,0.00016986,2]
[399579172,1766519443331,-280.88149,0.00016986,2]
[399579173,1766519443341,-151.0,0.00016986,2]
[399579174,1766519443351,-280.88149,0.00016986,2]
[399579175,1766519443360,-151.0,0.00016986,2]
[399579176,1766519443370,-151.0,0.00016986,2]
[399579177,1766519443380,-650.549535,0.00016986,2]
[399579178,1766519443389,-650.549535,0.00016986,2]
[399579179,1766519443399,-650.549535,0.00016986,2]
[399579180,1766519443409,-650.549535,0.00016986,2]
[399579181,1766519443419,-151.0,0.00016986,2]
[399579182,1766519443430,-151.0,0.00016986,2]
[399579183,1766519443440,-151.0,0.00016986,2]
[399579184,1766519443449,-151.0,0.00016986,2]
[399579185,1766519443459,-151.0,0.00016986,2]
[399579186,1766519443468,-151.0,0.00016986,2]
[399579187,1766519443478,-280.041168,0.00016986,2]
[399579188,1766519443488,-256.421748,0.00016986,2]
[399579189,1766519443497,-256.421748,0.00016986,2]
[399579190,1766519443507,-256.421748,0.00016986,2]
[399579191,1766519443517,-256.421748,0.00016986,2]
[399579192,1766519443527,-193.265202,0.00016986,2]
[399579193,1766519443536,-193.265202,0.00016986,2]
[399579194,1766519443547,-52523.28,0.00016986,2]
[399579195,1766519443557,-151.0,0.00016997,2]
[399579196,1766519443567,-631.85,0.00016998,2]
[399579197,1766519443577,-1036.83747208,0.00016999,5]
[399579198,1766519443587,-1036.83747208,0.00016999,5]
[399579199,1766519443596,-1672.08,0.00016999,2]
[399579200,1766519443606,-1672.08,0.00016999,2]
[399579201,1766519443616,-1672.08,0.00016999,2]
[399579202,1766519443626,-1672.08,0.00016999,2]
[399579203,1766519443636,-1672.08,0.00016999,2]
[399579204,1766519443646,-1672.08,0.00016999,2]
[399579205,1766519443655,-1672.08,0.00016999,2]
[399579206,1766519443665,-631.85,0.00016999,2]
[399579207,1766519443675,-631.85,0.00016999,2]
[399579208,1766519443684,-631.85,0.00016999,2]
[399579209,1766519443695,-631.85,0.00016999,2]
[399579210,1766519443706,-631.85,0.00016999,2]
[399579211,1766519443715,-631.85,0.00016999,2]
[399579212,1766519443725,-442.77837023,0.00016999,2]
[399579213,1766519443735,-500.0,0.00016999,2]
[399579214,1766519443744,-224.75330747,0.00016999,2]
[399579215,1766519443755,-500.0,0.00016999,2]
[399579216,1766519443765,-500.0,0.00016999,2]
[399579217,1766519443775,-367.76355783,0.00016999,2]
[399579218,1766519443785,-500.0,0.00016999,2]
[399579219,1766519443795,-153922.78197592,0.00017,2]
[399579220,1766519443804,-500100.17240218,0.00017,2]
[399579221,1766519443814,-496320.89834549,0.00017,2]
[399579222,1766519443870,-151.0,0.00016438,2]
[399579223,1766519443879,-6877.84508125,0.00017,2]
[399579224,1766519443891,-820.95209632,0.00017,2]
[399579225,1766519443907,-90138.42393929,0.00017,2]
[399579226,1766519443919,-5117.16678072,0.00017,2]
[399579227,1766519444118,-15.34418029,0.00016177,2]
[399579228,1766519444134,-220.64871971,0.00016177,2]
[399579229,1766519444143,-151.0,0.00016438,2]
[399579230,1766519444153,-93.43814991,0.00016438,2]
[399579231,1766519444188,-99.82705209,0.00016438,2]
[399579232,1766519444199,-151.0,0.00016986,2]
[399579233,1766519444209,-193.265202,0.00016986,2]
[399579234,1766519444219,-154.886796,0.00016986,2]
[399579235,1766519444229,-193.265202,0.00016986,2]
[399579236,1766519444239,-14268.88342496,0.00017,2]
[399579237,1766519444251,-3054.79361179,0.00017,2]
[399579240,1766519445561,-151.0,0.00016703,2]
[399579241,1766519445571,-6501.16,0.00017,2]
[399579242,1766519445583,-2074.74606667,0.00017,2]
[399579243,1766519445594,-366.20761346,0.00017,2]
[399579244,1766519445606,-10264.48088164,0.00017,2]
[399579245,1766519445617,-10678.71005094,0.00017,2]
[399579246,1766519445645,-43654.94940584,0.00017,2]
[399579247,1766519445705,-503.26943875,0.00017,2]
[399579248,1766519445717,-411.999998,0.00017,2]
[399579249,1766519445830,-1004.86603967,0.00017,2]
[399579250,1766519445885,-1074.08152458,0.00017,2]
[399579251,1766519445897,-16382.54989279,0.00017,2]
[399579252,1766519445908,-13270.65175904,0.00017,2]
[399579253,1766519445920,-10759.09401379,0.00017,2]
[399579254,1766519445931,-4277.3454413,0.00017,2]
[399579430,1766519937394,-494.74064293,0.00013699,2]
[399579451,1766520194772,-0.75935707,0.00013699,2]
[399579452,1766520194796,-250.0,0.00013699,2]
[399579453,1766520194821,-146.91227426,0.00013699,2]
[399579484,1766520549153,-116.08772574,0.00013699,2]
[399579485,1766520550214,119.11187141,0.00014384,2]
[399579493,1766520631558,-130.88812859,0.00014384,2]
[399579494,1766520631568,-1111.93337552,0.00015055,2]
[399579495,1766520631609,-56.01787948,0.00015055,2]
[399579496,1766520631619,-193.0,0.00015069,2]
[399579497,1766520631630,-250.0,0.00015069,2]
[399579498,1766520631639,-1000.0,0.00015131,2]
[399579499,1766520631650,-495.84,0.00015201,2]
[399579500,1766520631660,-200.0,0.00015485,2]
[399579501,1766520631671,-207.4,0.00015485,2]
[399579502,1766520631681,-215.0738,0.00015485,2]
[399579503,1766520631691,-187.58191174,0.00015485,2]
[399579504,1766520631701,-166.66,0.00015617,2]
[399579505,1766520631710,-904.30305238,0.00015717,2]
[399579506,1766520631722,-295.69694762,0.00015717,2]
[399579507,1766520631732,-29.29225992,0.00015718,2]
[399579508,1766520631747,-158.88646442,0.00015718,2]
[399579509,1766520631756,-553.43744099,0.00015718,2]
[399579510,1766520631766,-151.0,0.00015724,2]
[399579511,1766520631776,-151.0,0.00015724,2]
[399579512,1766520631786,-151.0,0.00015724,2]
[399579513,1766520632231,-300.0,0.00015725,2]
[399579514,1766520632243,-300.0,0.00015726,2]
[399579515,1766520632253,-1000.0,0.00015726,2]
[399579516,1766520632264,-270.67609458,0.00015726,2]
[399579517,1766520632275,-229.32390542,0.00015726,2]
[399579518,1766520632286,-500.0,0.00015726,2]
[399579519,1766520632295,-77.47722177,0.00015726,2]
[399579520,1766520632307,-422.52277823,0.00015726,2]
[399579521,1766520632317,-210.31813509,0.00015726,2]
[399579522,1766520632326,-851.76437129,0.00015726,2]
[399579523,1766520632336,-500.0,0.00015726,2]
[399579524,1766520632346,-851.76437129,0.00015726,2]
[399579525,1766520632356,-851.76437129,0.00015726,2]
[399579526,1766520632367,-500.0,0.00015726,2]
[399579527,1766520632376,-851.76437129,0.00015726,2]
[399579528,1766520632387,-500.0,0.00015726,2]
[399579529,1766520632397,-851.76437129,0.00015726,2]
[399579530,1766520632407,-851.76437129,0.00015726,2]
[399579531,1766520632417,-255.66087977,0.00015726,2]
[399579532,1766520632429,-851.76437129,0.00015726,2]
[399579533,1766520632441,-851.76437129,0.00015726,2]
[399579534,1766520632451,-851.76437129,0.00015726,2]
[399579535,1766520632461,-851.76437129,0.00015726,2]
[399579536,1766520632472,-851.76437129,0.00015726,2]
[399579537,1766520632481,-851.76437129,0.00015726,2]
[399579538,1766520632491,-851.76437129,0.00015726,2]
[399579539,1766520632501,-851.76437129,0.00015726,2]
[399579540,1766520632512,-851.76437129,0.00015726,2]
[399579541,1766520632522,-851.76437129,0.00015726,2]
[399579542,1766520632533,-851.76437129,0.00015726,2]
[399579543,1766520632543,-851.76437129,0.00015726,2]
[399579544,1766520632552,-851.76437129,0.00015726,2]
[399579545,1766520632562,-851.76437129,0.00015726,2]
[399579546,1766520632572,-851.76437129,0.00015726,2]
[399579547,1766520632582,-851.76437129,0.00015726,2]
[399579548,1766520632591,-851.76437129,0.00015726,2]
[399579549,1766520632601,-851.76437129,0.00015726,2]
[399579550,1766520632612,-851.76437129,0.00015726,2]
[399579551,1766520632622,-851.76437129,0.00015726,2]
[399579552,1766520632632,-851.76437129,0.00015726,2]
[399579554,1766520632642,-851.76437129,0.00015726,2]
[399579556,1766520632652,-851.76437129,0.00015726,2]
[399579558,1766520632661,-851.76437129,0.00015726,2]
[399579560,1766520632671,-851.76437129,0.00015726,2]
[399579562,1766520632681,-851.76437129,0.00015726,2]
[399579564,1766520632691,-851.76437129,0.00015726,2]
[399579565,1766520632701,-851.76437129,0.00015726,2]
[399579567,1766520632711,-851.76437129,0.00015726,2]
[399579569,1766520632721,-851.76437129,0.00015726,2]
[399579571,1766520632731,-851.76437129,0.00015726,2]
[399579573,1766520632740,-851.76437129,0.00015726,2]
[399579575,1766520632750,-851.76437129,0.00015726,2]
[399579577,1766520632760,-851.76437129,0.00015726,2]
[399579580,1766520632771,-851.76437129,0.00015726,2]
[399579581,1766520632781,-851.76437129,0.00015726,2]
[399579583,1766520632791,-851.76437129,0.00015726,2]
[399579585,1766520632801,-851.76437129,0.00015726,2]
[399579587,1766520632810,-851.76437129,0.00015726,2]
[399579589,1766520632819,-851.76437129,0.00015726,2]
[399579591,1766520632829,-851.76437129,0.00015726,2]
[399579592,1766520632840,-851.76437129,0.00015726,2]
[399579594,1766520632849,-851.76437129,0.00015726,2]
[399579596,1766520632859,-851.76437129,0.00015726,2]
[399579598,1766520632869,-851.76437129,0.00015726,2]
[399579600,1766520632879,-847.28140093,0.00015726,2]
[399579603,1766520632889,-847.28140093,0.00015726,2]
[399579604,1766520632899,-847.28140093,0.00015726,2]
[399579606,1766520632909,-847.28140093,0.00015726,2]
[399579609,1766520632919,-847.28140093,0.00015726,2]
[399579610,1766520632928,-847.28140093,0.00015726,2]
[399579612,1766520632937,-847.28140093,0.00015726,2]
[399579614,1766520632947,-847.28140093,0.00015726,2]
[399579616,1766520632958,-847.28140093,0.00015726,2]
[399579618,1766520632967,-847.28140093,0.00015726,2]
[399579621,1766520632980,-847.28140093,0.00015726,2]
[399579623,1766520632990,-847.28140093,0.00015726,2]
[399579625,1766520633000,-847.28140093,0.00015726,2]
[399579627,1766520633010,-847.28140093,0.00015726,2]
[399579629,1766520633020,-847.28140093,0.00015726,2]
[399579630,1766520633029,-847.28140093,0.00015726,2]
[399579632,1766520633039,-847.28140093,0.00015726,2]
[399579634,1766520633049,-847.28140093,0.00015726,2]
[399579637,1766520633059,-847.28140093,0.00015726,2]
[399579639,1766520633069,-847.28140093,0.00015726,2]
[399579640,1766520633079,-847.28140093,0.00015726,2]
[399579642,1766520633089,-847.28140093,0.00015726,2]
[399579644,1766520633099,-847.28140093,0.00015726,2]
[399579647,1766520633110,-847.28140093,0.00015726,2]
[399579649,1766520633120,-847.28140093,0.00015726,2]
[399579650,1766520633130,-847.28140093,0.00015726,2]
[399579652,1766520633140,-847.28140093,0.00015726,2]
[399579654,1766520633149,-847.28140093,0.00015726,2]
[399579656,1766520633159,-847.28140091,0.00015726,2]
[399579658,1766520633169,-847.28140091,0.00015726,2]
[399579660,1766520633179,-847.28140091,0.00015726,2]
[399579662,1766520633188,-847.28140091,0.00015726,2]
[399579664,1766520633199,-847.28140091,0.00015726,2]
[399579666,1766520633209,-847.28140091,0.00015726,2]
[399579668,1766520633219,-847.28140091,0.00015726,2]
[399579670,1766520633228,-847.28140091,0.00015726,2]
[399579672,1766520633238,-847.28140091,0.00015726,2]
[399579674,1766520633249,-524542.18492485,0.00015727,2]
[399579748,1766520634000,-13334.6945328,0.00015727,2]
[399579751,1766520634027,-345.231887,0.00015727,2]
[399579943,1766520637714,-1856.2499998,0.00015727,2]
[399579944,1766520637726,-27248.08636569,0.00015727,2]
[399579945,1766520637739,-8767.15,0.00015727,2]
[399579946,1766520637878,-90348.5886691,0.00015727,2]
[399579947,1766520637895,-570.96484523,0.00015727,2]
[399579948,1766520637908,-332986.84877553,0.00015727,2]
[399579949,1766520637918,-322.6107,0.00015818,2]
[399579950,1766520637928,-21847.01493334,0.00015827,2]
[399579951,1766520637938,-2500.0,0.00015827,2]
[399579952,1766520637948,-165.82568429,0.00015918,2]
[399579953,1766520637958,-500.0,0.00015918,2]